[Event "Late-Titled-Tuesday-Blitz-March-05-2024"]
[Site "Chess.com"]
[Date "2024.03.05"]
[Round "10"]
[White "FairChess_on_YouTube"]
[Black "Shtembuliak"]
[Result "1-0"]
[WhiteElo "3094"]
[BlackElo "2864"]
[TimeControl "180+1"]
[EndTime "15:52:00 PST"]
[Termination "FairChess_on_YouTube won on time"]

1. e4 {[%clk 0:03:00.9]} 1... d6 {[%clk 0:02:59.7]} 2. d4 {[%clk 0:03:00.4]}
2... g6 {[%clk 0:03:00.1]} 3. Nc3 {[%clk 0:02:58.6]} 3... Bg7 {[%clk 0:03:00.4]}
4. Be3 {[%clk 0:02:58.7]} 4... a6 {[%clk 0:03:00.4]} 5. Qd2 {[%clk 0:02:58]}
5... b5 {[%clk 0:02:59]} 6. Bd3 {[%clk 0:02:57.4]} 6... Bb7 {[%clk 0:02:58.7]}
7. Nf3 {[%clk 0:02:56.3]} 7... Nd7 {[%clk 0:02:58.3]} 8. Ne2 {[%clk 0:02:53.6]}
8... Ngf6 {[%clk 0:02:55.2]} 9. Ng3 {[%clk 0:02:53.5]} 9... Ng4 {[%clk
0:02:55.4]} 10. Bf4 {[%clk 0:02:36.8]} 10... e5 {[%clk 0:02:55.3]} 11. dxe5
{[%clk 0:02:32.9]} 11... dxe5 {[%clk 0:02:56.2]} 12. Bg5 {[%clk 0:02:31.7]}
12... f6 {[%clk 0:02:48.7]} 13. Bh4 {[%clk 0:02:21.8]} 13... Nc5 {[%clk
0:02:06.3]} 14. O-O {[%clk 0:02:15.3]} 14... Qe7 {[%clk 0:01:51.5]} 15. Rad1
{[%clk 0:01:55.6]} 15... O-O {[%clk 0:00:59.9]} 16. Qb4 {[%clk 0:01:47.9]} 16...
Rfd8 {[%clk 0:00:45.1]} 17. Be2 {[%clk 0:01:39]} 17... Bf8 {[%clk 0:00:42.2]}
18. Qc3 {[%clk 0:00:59.9]} 18... Rxd1 {[%clk 0:00:21.5]} 19. Rxd1 {[%clk
0:01:00.8]} 19... Nxe4 {[%clk 0:00:21.9]} 20. Nxe4 {[%clk 0:00:56.8]} 20... Bxe4
{[%clk 0:00:22.8]} 21. Nd2 {[%clk 0:00:52]} 21... Bf5 {[%clk 0:00:22.5]} 22. h3
{[%clk 0:00:34.8]} 22... Nh6 {[%clk 0:00:22.1]} 23. Qc6 {[%clk 0:00:35.3]} 23...
Rd8 {[%clk 0:00:12.3]} 24. Bxf6 {[%clk 0:00:33.5]} 24... Rd6 {[%clk 0:00:12.7]}
25. Bxe7 {[%clk 0:00:29.1]} 25... Rxc6 {[%clk 0:00:12.9]} 26. Bxf8 {[%clk
0:00:29.3]} 26... Kxf8 {[%clk 0:00:13.8]} 27. c4 {[%clk 0:00:28.8]} 27... Rd6
{[%clk 0:00:13]} 28. Nf3 {[%clk 0:00:23.3]} 28... Rxd1+ {[%clk 0:00:11]} 29.
Bxd1 {[%clk 0:00:24.2]} 29... e4 {[%clk 0:00:08.7]} 30. Nd4 {[%clk 0:00:23.1]}
30... bxc4 {[%clk 0:00:07.5]} 31. Be2 {[%clk 0:00:21.7]} 31... c5 {[%clk
0:00:07.5]} 32. Nxf5 {[%clk 0:00:15.6]} 32... Nxf5 {[%clk 0:00:07.5]} 33. Bxc4
{[%clk 0:00:16.3]} 33... a5 {[%clk 0:00:08]} 34. Bd5 {[%clk 0:00:14.9]} 34... e3
{[%clk 0:00:05.7]} 35. Kf1 {[%clk 0:00:14.7]} 35... exf2 {[%clk 0:00:04.4]} 36.
Kxf2 {[%clk 0:00:15.6]} 36... Ke7 {[%clk 0:00:04.5]} 37. Ke2 {[%clk 0:00:15.4]}
37... Kd6 {[%clk 0:00:04.2]} 38. Bg8 {[%clk 0:00:15.5]} 38... h6 {[%clk
0:00:04.4]} 39. Kd3 {[%clk 0:00:11.6]} 39... Ke5 {[%clk 0:00:03.8]} 40. Kc4
{[%clk 0:00:10.2]} 40... Ne3+ {[%clk 0:00:04.1]} 41. Kb5 {[%clk 0:00:08.5]}
41... Nxg2 {[%clk 0:00:05]} 42. Kxa5 {[%clk 0:00:08.9]} 42... Nf4 {[%clk
0:00:03.8]} 43. Kb6 {[%clk 0:00:09]} 43... Nxh3 {[%clk 0:00:03.5]} 44. a4 {[%clk
0:00:09.3]} 44... Ng5 {[%clk 0:00:02.1]} 45. a5 {[%clk 0:00:09.4]} 45... Ne4
{[%clk 0:00:03]} 46. a6 {[%clk 0:00:09.9]} 46... Nd6 {[%clk 0:00:03.9]} 47. Kc7
{[%clk 0:00:07.1]} 47... h5 {[%clk 0:00:02.3]} 48. Bc4 {[%clk 0:00:05.7]} 48...
Ne8+ {[%clk 0:00:01.5]} 49. Kc6 {[%clk 0:00:05.4]} 1-0

[Event "Late-Titled-Tuesday-Blitz-March-05-2024"]
[Site "Chess.com"]
[Date "2024.03.05"]
[Round "10"]
[White "sotochess"]
[Black "Mikhal867"]
[Result "1-0"]
[WhiteElo "2581"]
[BlackElo "2492"]
[TimeControl "180+1"]
[EndTime "15:52:08 PST"]
[Termination "sotochess won by resignation"]

1. e4 {[%clk 0:02:59.8]} 1... g6 {[%clk 0:02:57.6]} 2. d4 {[%clk 0:02:58.3]}
2... Bg7 {[%clk 0:02:57.1]} 3. Nc3 {[%clk 0:02:57.4]} 3... d6 {[%clk 0:02:56.1]}
4. Be3 {[%clk 0:02:56.3]} 4... a6 {[%clk 0:02:55]} 5. Qd2 {[%clk 0:02:54.4]}
5... Nd7 {[%clk 0:02:48.8]} 6. h4 {[%clk 0:02:50.8]} 6... h5 {[%clk 0:02:48.1]}
7. Nh3 {[%clk 0:02:48.9]} 7... b5 {[%clk 0:02:47.9]} 8. Ng5 {[%clk 0:02:47.3]}
8... Nb6 {[%clk 0:02:47.5]} 9. b3 {[%clk 0:02:46.1]} 9... Nf6 {[%clk 0:02:43.2]}
10. f3 {[%clk 0:02:45.1]} 10... O-O {[%clk 0:02:39.2]} 11. O-O-O {[%clk
0:02:37]} 11... b4 {[%clk 0:02:32.1]} 12. Ne2 {[%clk 0:02:35.1]} 12... a5 {[%clk
0:02:32]} 13. Kb1 {[%clk 0:02:34.3]} 13... a4 {[%clk 0:02:28.4]} 14. Qxb4 {[%clk
0:02:26.8]} 14... axb3 {[%clk 0:02:28.3]} 15. cxb3 {[%clk 0:02:25.9]} 15... Bd7
{[%clk 0:02:14.4]} 16. Qd2 {[%clk 0:02:16.6]} 16... Qb8 {[%clk 0:02:11.3]} 17.
Rc1 {[%clk 0:02:13.6]} 17... Rc8 {[%clk 0:02:04.7]} 18. Nf4 {[%clk 0:02:08.3]}
18... Qa7 {[%clk 0:01:55.5]} 19. Rc2 {[%clk 0:01:53.5]} 19... c5 {[%clk
0:01:39.2]} 20. dxc5 {[%clk 0:01:43.1]} 20... dxc5 {[%clk 0:01:38.4]} 21. Bxc5
{[%clk 0:01:33.5]} 21... Rxc5 {[%clk 0:01:18.4]} 22. Rxc5 {[%clk 0:01:28.2]}
22... Nh7 {[%clk 0:00:59]} 23. Rc2 {[%clk 0:01:05.1]} 23... Nxg5 {[%clk
0:00:55]} 24. hxg5 {[%clk 0:01:04.2]} 24... Na4 {[%clk 0:00:48.6]} 25. Nd5
{[%clk 0:01:00.8]} 25... Be6 {[%clk 0:00:39.7]} 26. Rc7 {[%clk 0:00:50.4]} 26...
Nc3+ {[%clk 0:00:28.8]} 27. Rxc3 {[%clk 0:00:47.6]} 27... Bxd5 {[%clk
0:00:25.9]} 28. Rd3 {[%clk 0:00:40.6]} 28... Be6 {[%clk 0:00:22.9]} 29. Rd8+
{[%clk 0:00:37.5]} 29... Rxd8 {[%clk 0:00:22.2]} 30. Qxd8+ {[%clk 0:00:35.8]}
30... Kh7 {[%clk 0:00:22.8]} 31. Qd2 {[%clk 0:00:28.8]} 31... Bxb3 {[%clk
0:00:21]} 32. axb3 {[%clk 0:00:24.1]} 32... Qa1+ {[%clk 0:00:20.4]} 33. Kc2
{[%clk 0:00:24.3]} 33... Qb2+ {[%clk 0:00:20.5]} 34. Kd1 {[%clk 0:00:24]} 34...
Qxb3+ {[%clk 0:00:20.8]} 35. Ke2 {[%clk 0:00:24.1]} 35... Bc3 {[%clk 0:00:19.1]}
36. Qd1 {[%clk 0:00:18.6]} 36... Qb2+ {[%clk 0:00:18.9]} 37. Ke3 {[%clk
0:00:17.6]} 37... Bb4 {[%clk 0:00:16.3]} 38. Bd3 {[%clk 0:00:17]} 38... Bc5+
{[%clk 0:00:14.1]} 39. Kf4 {[%clk 0:00:17.1]} 39... Bd6+ {[%clk 0:00:14.2]} 40.
Ke3 {[%clk 0:00:17.2]} 40... Bc5+ {[%clk 0:00:14.3]} 41. Kf4 {[%clk 0:00:17.3]}
41... Qb8+ {[%clk 0:00:13.8]} 42. e5 {[%clk 0:00:16.4]} 42... Qb4+ {[%clk
0:00:13.5]} 43. Be4 {[%clk 0:00:14.3]} 43... Qb2 {[%clk 0:00:13.3]} 44. g4
{[%clk 0:00:12.7]} 44... Bd4 {[%clk 0:00:12.9]} 45. gxh5 {[%clk 0:00:11.7]}
45... Bxe5+ {[%clk 0:00:12.5]} 46. Ke3 {[%clk 0:00:11.8]} 46... Qb6+ {[%clk
0:00:11.3]} 47. Ke2 {[%clk 0:00:11.7]} 47... Qb2+ {[%clk 0:00:11.2]} 48. Qc2
{[%clk 0:00:11.5]} 48... Qb5+ {[%clk 0:00:10.8]} 49. Bd3 {[%clk 0:00:11.6]}
49... Qd5 {[%clk 0:00:07.4]} 50. hxg6+ {[%clk 0:00:12.5]} 50... Kg7 {[%clk
0:00:07.6]} 51. Rh7+ {[%clk 0:00:11.9]} 51... Kg8 {[%clk 0:00:07.7]} 52. gxf7+
{[%clk 0:00:11.9]} 52... Kf8 {[%clk 0:00:07.4]} 53. Qc8+ {[%clk 0:00:11.8]} 1-0

[Event "Late-Titled-Tuesday-Blitz-March-05-2024"]
[Site "Chess.com"]
[Date "2024.03.05"]
[Round "10"]
[White "Polish_fighter3000"]
[Black "K_A_S_T_O_R"]
[Result "1-0"]
[WhiteElo "3123"]
[BlackElo "2853"]
[TimeControl "180+1"]
[EndTime "15:52:10 PST"]
[Termination "Polish_fighter3000 won by resignation"]

1. e4 {[%clk 0:03:00.9]} 1... c5 {[%clk 0:02:59.7]} 2. Nf3 {[%clk 0:02:59.8]}
2... d6 {[%clk 0:03:00.1]} 3. d4 {[%clk 0:02:59.2]} 3... cxd4 {[%clk 0:03:00.4]}
4. Nxd4 {[%clk 0:03:00.1]} 4... Nf6 {[%clk 0:03:00.9]} 5. Nc3 {[%clk 0:03:00.4]}
5... a6 {[%clk 0:03:01.4]} 6. Bg5 {[%clk 0:03:00]} 6... e6 {[%clk 0:03:01.3]} 7.
Qf3 {[%clk 0:02:59.2]} 7... h6 {[%clk 0:03:00.5]} 8. Be3 {[%clk 0:02:58.7]} 8...
Qc7 {[%clk 0:02:56.2]} 9. O-O-O {[%clk 0:02:57.1]} 9... Nbd7 {[%clk 0:02:53.3]}
10. Qg3 {[%clk 0:02:52.3]} 10... Nc5 {[%clk 0:02:42.6]} 11. f3 {[%clk
0:02:49.8]} 11... Bd7 {[%clk 0:02:42.7]} 12. Kb1 {[%clk 0:02:35.5]} 12... Rb8
{[%clk 0:02:30.7]} 13. Nb3 {[%clk 0:02:28.8]} 13... Nxb3 {[%clk 0:02:26.8]} 14.
axb3 {[%clk 0:02:22.1]} 14... b5 {[%clk 0:02:20.1]} 15. Rd2 {[%clk 0:01:47.6]}
15... b4 {[%clk 0:02:18.3]} 16. Na4 {[%clk 0:01:47.3]} 16... Bb5 {[%clk
0:02:15.5]} 17. Bd3 {[%clk 0:01:34.3]} 17... g6 {[%clk 0:02:06.4]} 18. Bd4
{[%clk 0:01:20.6]} 18... e5 {[%clk 0:02:04.8]} 19. Be3 {[%clk 0:01:20.6]} 19...
Be7 {[%clk 0:02:00]} 20. Qf2 {[%clk 0:01:19.8]} 20... Nd7 {[%clk 0:01:58]} 21.
h4 {[%clk 0:01:04.4]} 21... h5 {[%clk 0:01:56.9]} 22. Rhd1 {[%clk 0:00:55.8]}
22... Qc6 {[%clk 0:01:56.2]} 23. g3 {[%clk 0:00:44.2]} 23... Kf8 {[%clk
0:01:34.3]} 24. Bg5 {[%clk 0:00:42]} 24... f6 {[%clk 0:01:12.6]} 25. Be3 {[%clk
0:00:41.5]} 25... Kg7 {[%clk 0:01:13.1]} 26. f4 {[%clk 0:00:38.7]} 26... Rbc8
{[%clk 0:00:54.4]} 27. f5 {[%clk 0:00:31]} 27... Bxa4 {[%clk 0:00:35.9]} 28.
bxa4 {[%clk 0:00:31.4]} 28... Qxa4 {[%clk 0:00:36.5]} 29. b3 {[%clk 0:00:22.4]}
29... Qc6 {[%clk 0:00:36.5]} 30. fxg6 {[%clk 0:00:22.5]} 30... Nc5 {[%clk
0:00:36.7]} 31. Bxc5 {[%clk 0:00:19.4]} 31... Qxc5 {[%clk 0:00:36.9]} 32. Qf5
{[%clk 0:00:17.9]} 32... Qc7 {[%clk 0:00:31.3]} 33. Bc4 {[%clk 0:00:15.4]} 33...
Rcf8 {[%clk 0:00:30.9]} 34. g4 {[%clk 0:00:08.8]} 34... Qc8 {[%clk 0:00:28.4]}
35. Be6 {[%clk 0:00:07]} 35... Qc7 {[%clk 0:00:22.4]} 36. gxh5 {[%clk
0:00:06.8]} 36... a5 {[%clk 0:00:22.9]} 37. Rd3 {[%clk 0:00:04.5]} 37... Rh6
{[%clk 0:00:20.5]} 38. Qg4 {[%clk 0:00:03.2]} 38... Rfh8 {[%clk 0:00:19.4]} 39.
Bd5 {[%clk 0:00:03.4]} 39... Qc8 {[%clk 0:00:17.5]} 40. Qxc8 {[%clk 0:00:02.6]}
40... Rxc8 {[%clk 0:00:16.9]} 41. Be6 {[%clk 0:00:03.2]} 41... Rc5 {[%clk
0:00:17.2]} 42. Bg4 {[%clk 0:00:03.5]} 42... Rh8 {[%clk 0:00:16.7]} 43. Rxd6
{[%clk 0:00:04]} 43... Bxd6 {[%clk 0:00:16.6]} 44. Rxd6 {[%clk 0:00:04.9]} 44...
Rc7 {[%clk 0:00:15.2]} 45. Kc1 {[%clk 0:00:04.5]} 45... Rb8 {[%clk 0:00:11.5]}
46. Kd2 {[%clk 0:00:04.7]} 46... Rb5 {[%clk 0:00:11.6]} 47. Ra6 {[%clk
0:00:04.5]} 47... Rbc5 {[%clk 0:00:11.4]} 48. c4 {[%clk 0:00:03.6]} 48... bxc3+
{[%clk 0:00:11]} 49. Kc2 {[%clk 0:00:04.2]} 49... R5c6 {[%clk 0:00:11.5]} 50.
Rxa5 {[%clk 0:00:04]} 50... Rd6 {[%clk 0:00:12]} 51. Rd5 {[%clk 0:00:04.6]}
51... Ra6 {[%clk 0:00:12.3]} 52. Rd1 {[%clk 0:00:03.1]} 52... Ra2+ {[%clk
0:00:12.3]} 53. Kd3 {[%clk 0:00:03.7]} 53... c2 {[%clk 0:00:12.6]} 54. Rc1
{[%clk 0:00:04.3]} 54... Rd7+ {[%clk 0:00:12.8]} 55. Bxd7 {[%clk 0:00:04.4]} 1-0

[Event "Late-Titled-Tuesday-Blitz-March-05-2024"]
[Site "Chess.com"]
[Date "2024.03.05"]
[Round "10"]
[White "Nouali_Mohamed"]
[Black "AlexTruskavetsky"]
[Result "1-0"]
[WhiteElo "2558"]
[BlackElo "2677"]
[TimeControl "180+1"]
[EndTime "15:52:10 PST"]
[Termination "Nouali_Mohamed won by checkmate"]

1. e4 {[%clk 0:03:00]} 1... e6 {[%clk 0:02:58.9]} 2. d4 {[%clk 0:03:00.2]} 2...
d5 {[%clk 0:02:58.7]} 3. Nc3 {[%clk 0:02:59.9]} 3... dxe4 {[%clk 0:02:55.5]} 4.
Nxe4 {[%clk 0:03:00.8]} 4... Nf6 {[%clk 0:02:54.3]} 5. Nxf6+ {[%clk 0:03:01.1]}
5... Qxf6 {[%clk 0:02:55.2]} 6. Nf3 {[%clk 0:03:01.8]} 6... h6 {[%clk
0:02:46.9]} 7. Bd3 {[%clk 0:03:00.1]} 7... Nd7 {[%clk 0:02:47]} 8. O-O {[%clk
0:02:56.9]} 8... c5 {[%clk 0:02:47.1]} 9. dxc5 {[%clk 0:02:08.4]} 9... Bxc5
{[%clk 0:02:46.7]} 10. Qe2 {[%clk 0:02:06.3]} 10... Qe7 {[%clk 0:02:28]} 11. b3
{[%clk 0:02:00.8]} 11... O-O {[%clk 0:02:26.1]} 12. Bb2 {[%clk 0:02:01.1]} 12...
Nf6 {[%clk 0:02:24.2]} 13. Ne5 {[%clk 0:01:56.4]} 13... b6 {[%clk 0:01:57.3]}
14. Qf3 {[%clk 0:01:52.1]} 14... Bb7 {[%clk 0:01:48.5]} 15. Qg3 {[%clk
0:01:33.4]} 15... Rad8 {[%clk 0:01:17.2]} 16. Rae1 {[%clk 0:01:29.4]} 16... Bd4
{[%clk 0:01:14.7]} 17. Bc1 {[%clk 0:01:14.6]} 17... Kh8 {[%clk 0:01:09.9]} 18.
Qh3 {[%clk 0:00:45.9]} 18... Ng8 {[%clk 0:01:01.7]} 19. Kh1 {[%clk 0:00:41]}
19... Bxe5 {[%clk 0:00:27.5]} 20. Rxe5 {[%clk 0:00:40]} 20... Rd5 {[%clk
0:00:28.1]} 21. Re3 {[%clk 0:00:25.3]} 21... Rfd8 {[%clk 0:00:27.4]} 22. Rg3
{[%clk 0:00:22.9]} 22... Qf6 {[%clk 0:00:20.6]} 23. Qg4 {[%clk 0:00:16.5]} 23...
g6 {[%clk 0:00:18.2]} 24. Be3 {[%clk 0:00:15.6]} 24... h5 {[%clk 0:00:17.3]} 25.
Qe2 {[%clk 0:00:15.7]} 25... Kh7 {[%clk 0:00:13.3]} 26. Be4 {[%clk 0:00:10.4]}
26... R5d7 {[%clk 0:00:13.5]} 27. Bxb7 {[%clk 0:00:09.9]} 27... Rxb7 {[%clk
0:00:13.4]} 28. Bg5 {[%clk 0:00:10.4]} 28... Kg7 {[%clk 0:00:14.1]} 29. Bxf6+
{[%clk 0:00:10.5]} 29... Nxf6 {[%clk 0:00:14.1]} 30. h3 {[%clk 0:00:10.8]} 30...
Rbd7 {[%clk 0:00:14.3]} 31. Rd3 {[%clk 0:00:09.7]} 31... Rxd3 {[%clk 0:00:14.7]}
32. cxd3 {[%clk 0:00:10.6]} 32... Rd5 {[%clk 0:00:14.6]} 33. Rd1 {[%clk
0:00:10.2]} 33... e5 {[%clk 0:00:14.2]} 34. Qe3 {[%clk 0:00:10.5]} 34... Nd7
{[%clk 0:00:13.6]} 35. Kg1 {[%clk 0:00:10.2]} 35... f5 {[%clk 0:00:14]} 36. f3
{[%clk 0:00:09.7]} 36... Nc5 {[%clk 0:00:14]} 37. Qe2 {[%clk 0:00:08.7]} 37...
Ne6 {[%clk 0:00:14.5]} 38. Rc1 {[%clk 0:00:08.2]} 38... Nf4 {[%clk 0:00:14.4]}
39. Qc2 {[%clk 0:00:06.9]} 39... Rxd3 {[%clk 0:00:15]} 40. Qc7+ {[%clk 0:00:07]}
40... Kf6 {[%clk 0:00:13.2]} 41. Rc6+ {[%clk 0:00:07.1]} 41... Kg5 {[%clk
0:00:13.8]} 42. Qe7+ {[%clk 0:00:06.8]} 42... Kh6 {[%clk 0:00:13.7]} 43. Qxe5
{[%clk 0:00:06.4]} 43... Kg5 {[%clk 0:00:13.7]} 44. h4+ {[%clk 0:00:06.2]} 44...
Kh6 {[%clk 0:00:12.3]} 45. Qxf4+ {[%clk 0:00:07.1]} 45... Kg7 {[%clk 0:00:11]}
46. Rc7+ {[%clk 0:00:07.3]} 46... Kf6 {[%clk 0:00:11.1]} 47. Qg5+ {[%clk
0:00:06.6]} 47... Ke5 {[%clk 0:00:11.8]} 48. Qe7+ {[%clk 0:00:06.9]} 48... Kf4
{[%clk 0:00:12.3]} 49. Kf2 {[%clk 0:00:06.2]} 49... Rd2+ {[%clk 0:00:12.6]} 50.
Qe2 {[%clk 0:00:06.5]} 50... Rxe2+ {[%clk 0:00:12.2]} 51. Kxe2 {[%clk
0:00:07.4]} 51... Kg3 {[%clk 0:00:13.1]} 52. Rxa7 {[%clk 0:00:07.2]} 52... g5
{[%clk 0:00:13]} 53. hxg5 {[%clk 0:00:07.2]} 53... Kxg2 {[%clk 0:00:13.6]} 54.
g6 {[%clk 0:00:06.9]} 54... h4 {[%clk 0:00:14.3]} 55. g7 {[%clk 0:00:07.8]}
55... h3 {[%clk 0:00:15.2]} 56. g8=Q+ {[%clk 0:00:08.7]} 56... Kh2 {[%clk
0:00:16.1]} 57. Rh7 {[%clk 0:00:08.7]} 57... Kh1 {[%clk 0:00:17]} 58. Qg3 {[%clk
0:00:08.8]} 58... h2 {[%clk 0:00:17.9]} 59. Rxh2# {[%clk 0:00:08.9]} 1-0

[Event "Late-Titled-Tuesday-Blitz-March-05-2024"]
[Site "Chess.com"]
[Date "2024.03.05"]
[Round "10"]
[White "emeli_chess"]
[Black "1g60-1"]
[Result "1/2-1/2"]
[WhiteElo "2398"]
[BlackElo "2284"]
[TimeControl "180+1"]
[EndTime "15:52:22 PST"]
[Termination "Game drawn by repetition"]

1. d4 {[%clk 0:02:54.7]} 1... e6 {[%clk 0:02:59.2]} 2. c4 {[%clk 0:02:54]} 2...
f5 {[%clk 0:02:59.3]} 3. g3 {[%clk 0:02:54.3]} 3... Nf6 {[%clk 0:02:59.6]} 4.
Bg2 {[%clk 0:02:54.4]} 4... Be7 {[%clk 0:03:00.2]} 5. Nh3 {[%clk 0:02:54.4]}
5... O-O {[%clk 0:02:55.4]} 6. O-O {[%clk 0:02:53.8]} 6... d6 {[%clk 0:02:51.3]}
7. Nc3 {[%clk 0:02:50.6]} 7... a5 {[%clk 0:02:48.5]} 8. f3 {[%clk 0:02:38.7]}
8... e5 {[%clk 0:02:46.4]} 9. dxe5 {[%clk 0:02:25.8]} 9... dxe5 {[%clk
0:02:45.8]} 10. Qxd8 {[%clk 0:02:21.5]} 10... Bxd8 {[%clk 0:02:45.9]} 11. Rd1
{[%clk 0:02:13.2]} 11... c6 {[%clk 0:02:43]} 12. Be3 {[%clk 0:02:11.5]} 12... h6
{[%clk 0:02:25.3]} 13. Bc5 {[%clk 0:02:05.3]} 13... Re8 {[%clk 0:02:24.4]} 14.
Nf2 {[%clk 0:01:53.3]} 14... Na6 {[%clk 0:02:19.6]} 15. Ba3 {[%clk 0:01:46.7]}
15... Be6 {[%clk 0:02:17.6]} 16. b3 {[%clk 0:01:46]} 16... Nb4 {[%clk
0:02:15.6]} 17. Bb2 {[%clk 0:01:41.8]} 17... Nc2 {[%clk 0:02:13.1]} 18. Rac1
{[%clk 0:01:40.7]} 18... Ne3 {[%clk 0:02:13.3]} 19. Rd3 {[%clk 0:01:28.2]} 19...
Nxg2 {[%clk 0:02:09.7]} 20. Kxg2 {[%clk 0:01:27.9]} 20... Bc7 {[%clk 0:01:57.1]}
21. e4 {[%clk 0:01:27.5]} 21... fxe4 {[%clk 0:01:56.4]} 22. Ncxe4 {[%clk
0:01:26.8]} 22... Rad8 {[%clk 0:01:46.6]} 23. Rcd1 {[%clk 0:01:26.5]} 23... Rxd3
{[%clk 0:01:46.1]} 24. Rxd3 {[%clk 0:01:27]} 24... Bf5 {[%clk 0:01:40]} 25. g4
{[%clk 0:01:22.3]} 25... Nxe4 {[%clk 0:01:26.6]} 26. Nxe4 {[%clk 0:01:21.1]}
26... Be6 {[%clk 0:01:15.1]} 27. h4 {[%clk 0:01:17.7]} 27... a4 {[%clk
0:01:11.5]} 28. h5 {[%clk 0:01:14.9]} 28... axb3 {[%clk 0:01:08.5]} 29. axb3
{[%clk 0:01:15.2]} 29... Ra8 {[%clk 0:01:08]} 30. Nc5 {[%clk 0:01:14.7]} 30...
Bf7 {[%clk 0:00:53.9]} 31. Rd7 {[%clk 0:01:03]} 31... Bb6 {[%clk 0:00:44.4]} 32.
Nd3 {[%clk 0:00:59.6]} 32... Ra2 {[%clk 0:00:39.9]} 33. Kg3 {[%clk 0:00:59.5]}
33... Bd4 {[%clk 0:00:24.5]} 34. Bxd4 {[%clk 0:00:59.1]} 34... exd4 {[%clk
0:00:25.4]} 35. Rxd4 {[%clk 0:00:59.2]} 35... Ra3 {[%clk 0:00:25.6]} 36. Rd8+
{[%clk 0:00:58.7]} 36... Kh7 {[%clk 0:00:25.6]} 37. Ne5 {[%clk 0:00:58]} 37...
Bg8 {[%clk 0:00:17.4]} 38. b4 {[%clk 0:00:53.7]} 38... Rb3 {[%clk 0:00:16.2]}
39. b5 {[%clk 0:00:34.2]} 39... cxb5 {[%clk 0:00:15.8]} 40. cxb5 {[%clk
0:00:33.3]} 40... Rxb5 {[%clk 0:00:15.6]} 41. Ng6 {[%clk 0:00:29.3]} 41... Rd5
{[%clk 0:00:12.1]} 42. Rxg8 {[%clk 0:00:22]} 42... Kxg8 {[%clk 0:00:09.4]} 43.
Ne7+ {[%clk 0:00:22.2]} 43... Kf7 {[%clk 0:00:10.3]} 44. Nxd5 {[%clk 0:00:22.4]}
44... Ke6 {[%clk 0:00:11.2]} 45. Nc3 {[%clk 0:00:22.1]} 45... Ke5 {[%clk
0:00:10.6]} 46. Nb5 {[%clk 0:00:19.1]} 46... Kd5 {[%clk 0:00:10.3]} 47. Na7
{[%clk 0:00:18.6]} 47... Kc5 {[%clk 0:00:09.7]} 48. f4 {[%clk 0:00:18.3]} 48...
Kb6 {[%clk 0:00:10.6]} 49. Nc8+ {[%clk 0:00:17.5]} 49... Kc7 {[%clk 0:00:11.1]}
50. Ne7 {[%clk 0:00:17.3]} 50... b5 {[%clk 0:00:11.1]} 51. g5 {[%clk 0:00:17.1]}
51... hxg5 {[%clk 0:00:10]} 52. fxg5 {[%clk 0:00:16.9]} 52... Kd6 {[%clk
0:00:10.9]} 53. Nf5+ {[%clk 0:00:16.6]} 53... Ke5 {[%clk 0:00:11.1]} 54. Kg4
{[%clk 0:00:16.7]} 54... b4 {[%clk 0:00:10.5]} 55. Ne3 {[%clk 0:00:16.6]} 55...
b3 {[%clk 0:00:09]} 56. Nd1 {[%clk 0:00:16.5]} 56... Ke6 {[%clk 0:00:08.3]} 57.
h6 {[%clk 0:00:15.9]} 57... gxh6 {[%clk 0:00:08.4]} 58. gxh6 {[%clk 0:00:16.1]}
58... Kf7 {[%clk 0:00:08.9]} 59. Kg5 {[%clk 0:00:16.1]} 59... Kg8 {[%clk
0:00:09.2]} 60. Kg6 {[%clk 0:00:14.7]} 60... Kh8 {[%clk 0:00:09.6]} 61. Nb2
{[%clk 0:00:14.4]} 61... Kg8 {[%clk 0:00:09.2]} 62. Nc4 {[%clk 0:00:14.6]} 62...
Kh8 {[%clk 0:00:08.1]} 63. Nb2 {[%clk 0:00:12.1]} 63... Kg8 {[%clk 0:00:07.9]}
64. Kh5 {[%clk 0:00:10.7]} 64... Kh7 {[%clk 0:00:07.7]} 65. Kg5 {[%clk
0:00:10.9]} 65... Kh8 {[%clk 0:00:08.2]} 66. Kg6 {[%clk 0:00:10.8]} 1/2-1/2